bitfinex-derivatives/quotes_ETHF0:USTF0_20250105
["timestamp","ask_amount","ask_price","bid_price","bid_amount"]
[1736097621376,0.24763,3635.4,3635.3,1.42636287]
[1736097622580,0.24763,3635.4,3635.3,1.67399287]
[1736097623277,0.24763,3635.4,3635.3,1.42636287]
[1736097623476,0.99956287,3635.4,3635.1,6.4539402]
[1736097623677,1.24720287,3635.2,3635.1,6.4539402]
[1736097624384,3.16167742,3635.4,3634.9,2.53191287]
[1736097624583,0.24765,3635.1,3634.9,2.53191287]
[1736097626079,3.16167742,3635.2,3634.9,1.2847]
[1736097626282,1.24721287,3635.0,3634.9,1.2847]
[1736097627379,1.24721287,3635.0,3634.9,0.8412]
[1736097629483,0.24766,3634.8,3634.7,3.2078]
[1736097629684,1.24722287,3634.8,3634.7,3.2078]
[1736097630088,1.24722287,3634.8,3634.7,4.0673]
[1736097630783,1.24722287,3634.8,3634.7,0.4364]
[1736097632086,3.40933742,3634.8,3634.7,0.4364]
[1736097633486,0.24767,3634.7,3634.6,0.4371]
[1736097633688,4.20736287,3634.8,3634.4,0.4231]
[1736097633884,1.24724287,3634.5,3634.4,0.4231]
[1736097634987,3.4086666,3634.5,3634.4,0.4231]
[1736097636289,3.4086666,3634.5,3634.0,1.071]
[1736097636290,0.24769,3634.4,3634.0,0.24771]
[1736097636589,0.24772,3633.9,3633.8,6.4539402]
[1736097636789,1.24728287,3633.9,3633.8,6.4539402]
[1736097637787,1.24728287,3633.9,3633.7,1.2568]
[1736097637976,1.24728287,3633.9,3633.7,1.50454]
[1736097638991,0.24772,3633.9,3633.7,1.50454]
[1736097639291,0.24772,3634.0,3633.8,0.24773]
[1736097640283,0.24772,3633.9,3633.8,0.24773]
[1736097640990,3.2078,3634.2,3633.8,0.24773]
[1736097641189,0.24772,3634.0,3633.8,0.24773]
[1736097641582,0.24772,3634.0,3633.7,1.2568]
[1736097641783,0.24772,3634.0,3633.9,0.24772]
[1736097642782,3.2078,3634.2,3633.7,1.2568]
[1736097642983,2.16142373,3634.4,3633.8,5.42404389]
[1736097643287,2.16142373,3634.4,3634.3,0.2477]
[1736097643789,3.45547,3634.7,3634.2,0.4294]
[1736097643993,3.2078,3634.7,3634.3,0.8409]
[1736097644292,0.24768,3634.6,3634.4,0.24769]
[1736097645384,0.24768,3634.5,3634.4,0.24769]
[1736097645986,0.24768,3634.6,3634.4,0.24769]
[1736097648888,0.24769,3634.5,3634.3,1.0886]
[1736097649498,2.21624389,3634.9,3634.4,0.24769]
[1736097649787,0.24768,3634.6,3634.4,0.24769]
[1736097649993,0.24768,3634.5,3634.4,0.24769]
[1736097651893,2.21624389,3634.9,3634.4,0.24769]
[1736097652191,0.24768,3634.6,3634.4,0.24769]
[1736097652989,0.24767,3634.7,3634.3,0.8409]
[1736097653190,0.24768,3634.6,3634.4,0.24769]
[1736097654196,0.24768,3634.5,3634.4,0.24769]
[1736097654899,0.24768,3634.5,3634.3,1.08859]
[1736097655196,7.58546762,3635.1,3634.3,1.08859]
[1736097655403,7.58546762,3635.1,3634.3,0.8409]
[1736097655404,0.24769,3634.4,3634.3,0.8409]
[1736097657796,0.2477,3634.3,3634.2,0.4294]
[1736097658102,0.24773,3633.8,3633.7,3.86823]
[1736097658704,0.24773,3633.9,3633.7,3.86823]
[1736097658904,0.24773,3633.9,3633.8,0.24773]
[1736097659093,0.24773,3633.9,3633.7,3.86824]
[1736097660402,0.24772,3634.0,3633.8,0.24773]
[1736097660602,0.24772,3634.0,3633.9,0.24772]
[1736097660901,2.21624389,3634.2,3633.7,3.6205]
[1736097661101,0.24773,3633.8,3633.7,3.6205]
[1736097662004,0.24773,3633.9,3633.7,3.86824]
[1736097662704,0.24772,3634.0,3633.8,0.24773]
[1736097664101,0.24772,3634.1,3633.9,0.24772]
[1736097664605,0.24772,3634.1,3634.0,0.24772]
[1736097665403,5.36922373,3634.4,3634.0,0.24772]
[1736097665604,0.24771,3634.2,3634.1,0.8512]
[1736097665804,0.24771,3634.2,3634.1,1.2935]
[1736097666004,0.2477,3634.3,3634.1,1.54121]
[1736097666208,0.2477,3634.3,3634.2,0.2477]
[1736097667309,0.2477,3634.3,3634.1,1.2935]
[1736097667806,0.24769,3634.4,3634.2,0.2477]
[1736097668001,2.16142373,3634.6,3634.1,1.2935]
[1736097668002,0.24769,3634.5,3634.1,1.2935]
[1736097668398,0.24769,3634.5,3634.3,0.24769]
[1736097669406,2.16142373,3634.6,3634.1,1.2935]
[1736097669604,2.40910373,3634.6,3634.5,0.24768]
[1736097670005,0.24768,3634.6,3634.5,0.24768]
[1736097670207,0.24768,3634.6,3634.1,4.5013]
[1736097670409,0.24768,3634.6,3634.4,0.24769]
[1736097670708,0.24768,3634.6,3634.5,0.24768]
[1736097671310,0.24768,3634.6,3634.4,0.24768]
[1736097671511,2.16153985,3634.6,3634.1,8.80019155]
[1736097671810,2.40921985,3634.6,3634.4,0.24769]
[1736097672308,2.40921985,3634.6,3634.5,0.4176]
[1736097673209,0.24768,3634.6,3634.5,0.4176]
[1736097674612,0.24768,3634.6,3634.5,0.66528]
[1736097674910,2.40921985,3634.6,3634.5,0.66528]
[1736097677216,1.24746858,3634.6,3634.5,0.66528]
[1736097677400,1.24746858,3634.6,3634.5,0.4176]
[1736097678415,1.24746858,3634.6,3634.5,0.66528]
[1736097680408,1.24746858,3634.6,3634.5,0.4176]
[1736097682517,3.41069587,3634.6,3634.5,0.4176]
[1736097683117,0.24769,3634.4,3634.3,4.29889155]
[1736097683316,5.45506716,3634.4,3634.3,4.29889155]
[1736097683620,5.20737716,3634.4,3634.2,4.29889155]
[1736097683808,0.2477,3634.3,3634.2,4.29889155]
[1736097684910,0.41293227,3634.3,3633.9,0.4244]
[1736097685116,0.24772,3634.0,3633.9,0.4244]
[1736097685316,1.24750858,3634.0,3633.9,0.4244]
[1736097686109,4.90595528,3634.0,3633.9,0.4244]
[1736097686620,8.11375528,3634.0,3633.9,0.4244]
[1736097686912,0.24773,3633.8,3633.7,0.8325]
[1736097687110,1.24751858,3633.8,3633.7,0.8325]
[1736097689516,3.41087585,3633.8,3633.7,0.8325]
[1736097694322,3.41087585,3633.8,3633.7,0.4054]
[1736097701517,1.24751858,3633.8,3633.7,0.4054]
[1736097717122,3.16314585,3633.9,3633.8,0.24773]
[1736097717729,3.41086585,3633.9,3633.8,0.24773]
[1736097719134,1.24750858,3633.9,3633.8,0.24773]
[1736097719827,0.99978858,3633.9,3633.8,0.24773]
[1736097723035,2.16335727,3634.0,3633.7,0.4054]
[1736097723236,2.16335727,3634.0,3633.9,0.24772]
[1736097723834,1.48995727,3634.0,3633.9,0.24772]
[1736097724338,1.48995727,3634.0,3633.9,0.68152]
[1736097724534,0.81655727,3634.0,3633.9,0.68152]
[1736097724837,3.24503591,3634.2,3634.1,0.24771]
[1736097725031,3.24503591,3634.2,3634.1,1.24749858]
[1736097725625,1.24747858,3634.5,3634.1,0.99978858]
[1736097725831,1.24747858,3634.5,3634.4,0.24769]
[1736097726031,0.99978858,3634.5,3634.4,0.24769]
[1736097726231,0.99978858,3634.5,3634.4,0.69149]
[1736097727041,1.24746858,3634.5,3634.4,0.69149]
[1736097727240,1.24746858,3634.5,3634.4,5.00409254]
[1736097727942,1.24746858,3634.5,3634.4,5.89139254]
[1736097728134,0.99978858,3634.5,3634.4,5.89139254]
[1736097728540,0.99978858,3634.5,3634.4,1.57879]
[1736097729937,0.99978858,3634.5,3634.4,5.89139254]
[1736097731341,3.24503591,3634.8,3634.4,5.64370254]
[1736097731529,3.24503591,3634.9,3634.8,0.24766]
[1736097731934,4.24482449,3634.9,3634.8,0.24766]
[1736097732736,0.99978858,3634.9,3634.8,0.24766]
[1736097733141,1.24744858,3634.9,3634.8,0.24766]
[1736097733841,0.24766,3634.9,3634.8,0.24766]
[1736097734042,1.67543858,3635.0,3634.8,0.24766]
[1736097734244,1.67543858,3635.0,3634.9,0.8427]
[1736097734444,1.67543858,3635.0,3634.9,1.2476]
[1736097736948,1.42778858,3635.0,3634.9,1.49526]
[1736097737851,1.67543858,3635.0,3634.9,1.2476]
[1736097738035,1.67543858,3635.0,3634.9,1.49526]
[1736097739240,1.67543858,3635.0,3634.9,1.2476]
[1736097739939,1.67543858,3635.0,3634.9,1.49526]
[1736097740546,1.42778858,3635.0,3634.9,1.49526]
[1736097741243,1.67543858,3635.0,3634.9,1.49526]
[1736097742347,1.42778858,3635.0,3634.9,1.49526]
[1736097742538,1.67543858,3635.0,3634.9,1.49526]
[1736097742742,1.42778858,3635.0,3634.9,1.49526]
[1736097743344,1.67543858,3635.0,3634.9,1.2476]
[1736097744948,1.67543858,3635.0,3634.9,1.49526]
[1736097747754,1.67543858,3635.0,3634.9,1.2476]
[1736097748954,1.67543858,3635.0,3634.9,1.49526]
[1736097749349,1.67543858,3635.0,3634.9,1.2476]
[1736097749955,1.67543858,3635.0,3634.9,1.49526]
[1736097755555,1.67543858,3635.0,3634.9,1.2476]
[1736097756654,1.67543858,3635.0,3634.9,1.49526]
[1736097756959,1.67543858,3635.0,3634.9,1.2476]
[1736097759162,1.67543858,3635.0,3634.9,1.49526]
[1736097759864,1.67543858,3635.0,3634.9,1.2476]
[1736097760453,1.67543858,3635.0,3634.9,0.809]
[1736097760659,1.67543858,3635.0,3634.6,0.24768]
[1736097760660,0.24766,3634.9,3634.6,0.24768]
[1736097760860,1.24745858,3634.7,3634.6,0.24768]
[1736097761672,0.99978858,3634.7,3634.5,7.93100254]
[1736097761869,0.4285,3634.6,3634.5,8.17868254]
[1736097762264,0.67618,3634.6,3634.5,8.17868254]
[1736097762668,0.67618,3634.6,3634.5,3.86608]
[1736097762669,0.4285,3634.6,3634.5,3.86608]
[1736097763368,0.67618,3634.6,3634.5,0.4106]
[1736097763568,1.09408,3634.6,3634.5,0.4106]
[1736097763961,0.8464,3634.6,3634.3,4.31260254]
[1736097764167,0.99978858,3634.5,3634.2,6.89020381]
[1736097764370,1.24748858,3634.3,3634.2,7.13790381]
[1736097765373,0.99978858,3634.3,3634.2,4.98448585]
[1736097766063,1.24748858,3634.3,3634.2,4.98448585]
[1736097766870,0.99978858,3634.3,3634.2,4.59143382]
[1736097767063,0.99978858,3634.3,3634.2,5.01633382]
[1736097769266,0.99978858,3634.3,3634.2,11.48523763]
[1736097774396,0.99978858,3634.3,3634.2,11.23753763]
[1736097774610,1.24748858,3634.3,3634.2,10.39133763]
[1736097776002,1.24748858,3634.3,3634.2,4.32088157]
[1736097777999,1.24748858,3634.3,3634.0,7.52868157]
[1736097778000,0.24771,3634.1,3634.0,7.52868157]
[1736097778222,0.4376,3634.2,3634.0,7.52868157]
[1736097778389,0.4376,3634.2,3634.1,0.68581]
[1736097778688,0.4376,3634.2,3634.1,1.12021]
[1736097779091,0.6853,3634.2,3634.1,1.12021]
[1736097779393,0.6853,3634.2,3634.0,7.77639157]
[1736097779587,1.24749858,3634.1,3634.0,7.77639157]
[1736097780289,1.24749858,3634.1,3634.0,3.45551]
[1736097780691,0.99978858,3634.1,3634.0,3.45551]
[1736097781288,1.24749858,3634.1,3634.0,3.45551]
[1736097782595,0.99978858,3634.1,3634.0,3.45551]
[1736097784096,1.24749858,3634.1,3634.0,3.45551]
[1736097784298,1.24749858,3634.1,3634.0,3.2078]
[1736097784499,1.42128858,3634.1,3633.9,4.32088157]
[1736097784792,0.24772,3634.0,3633.9,4.32088157]
[1736097785199,0.24772,3633.9,3633.8,5.20248157]
[1736097785400,1.24750858,3633.9,3633.8,5.20248157]
[1736097785606,1.24750858,3633.9,3633.8,4.76438157]
[1736097786702,1.24750858,3633.9,3633.8,0.4435]
[1736097790596,1.24750858,3633.9,3633.8,0.69123]
[1736097790798,1.24750858,3633.9,3633.8,0.4435]
[1736097793001,0.99978858,3633.9,3633.5,0.39203504]
[1736097793197,1.24753858,3633.6,3633.5,0.39203504]
[1736097794299,0.99978858,3633.6,3633.5,0.63978504]
[1736097794604,3.2078,3634.0,3633.5,0.39203504]
[1736097794803,0.99978858,3634.0,3633.9,0.24772]
[1736097795196,0.24774,3633.8,3633.6,0.24774]
[1736097795398,0.99978858,3633.7,3633.6,0.68475]
[1736097796800,1.41108858,3633.7,3633.6,0.68475]
[1736097799601,0.99978858,3633.7,3633.6,0.68475]
[1736097800812,0.99978858,3633.9,3633.6,0.437]
[1736097801008,1.24750858,3633.9,3633.8,0.24773]
[1736097801699,0.99978858,3633.9,3633.8,0.24773]
[1736097801903,4.32735257,3634.4,3634.1,0.24771]
[1736097802303,0.99978858,3634.5,3634.0,0.99978858]
[1736097802304,4.24480298,3634.3,3634.0,0.99978858]
[1736097802611,4.24480298,3634.3,3634.2,0.2477]
[1736097803805,0.99978858,3634.3,3634.2,0.2477]
[1736097806515,0.99978858,3634.7,3634.2,0.99978858]
[1736097806812,0.99978858,3634.7,3634.6,0.24768]
[1736097807817,0.99978858,3634.7,3634.6,0.66038]
[1736097808317,1.24745858,3634.7,3634.6,0.66038]
[1736097809105,1.24745858,3634.7,3634.6,0.4127]
[1736097810214,1.24745858,3634.7,3634.5,1.12848]
[1736097810919,1.24745858,3634.7,3634.5,0.8808]
[1736097810920,0.99978858,3634.7,3634.5,0.8808]
[1736097811121,0.99978858,3634.7,3634.6,0.24768]
[1736097811824,6.4528144,3634.9,3634.8,0.24766]
[1736097812018,7.45260298,3634.9,3634.8,0.24766]
[1736097812522,4.20758858,3634.9,3634.8,0.24766]
[1736097816423,0.99978858,3634.9,3634.8,0.24766]
[1736097817134,0.99978858,3634.9,3634.8,0.69366]
[1736097819729,0.99978858,3634.9,3634.6,0.24768]
[1736097819939,1.24745858,3634.7,3634.6,0.24768]
[1736097820127,0.99978858,3634.7,3634.6,0.24768]
[1736097821521,0.4257,3634.8,3634.5,0.8808]
[1736097821725,0.4257,3634.8,3634.7,0.24767]
[1736097821929,0.99978858,3634.9,3634.6,0.99978858]
[1736097822130,1.44328858,3635.1,3635.0,0.24765]
[1736097822827,7.70023298,3635.3,3635.2,0.24764]
[1736097823227,0.99978858,3635.3,3635.2,0.24764]
[1736097824130,0.99978858,3635.3,3635.1,3.2078]
[1736097824431,0.4435,3635.4,3635.1,3.2078]
[1736097824636,0.4435,3635.4,3635.3,0.24763]
[1736097824829,0.4435,3635.4,3635.1,3.2078]
[1736097825032,0.69112,3635.4,3635.2,0.24763]
[1736097827236,0.99978858,3635.3,3635.2,0.24763]
[1736097836433,0.99978858,3635.3,3635.0,3.6188]
[1736097836638,0.4435,3635.4,3635.2,0.24764]
[1736097837038,0.69112,3635.4,3635.2,0.24764]
[1736097839433,0.4435,3635.4,3635.0,3.6188]
[1736097839638,0.99978858,3635.1,3635.0,3.86645]
[1736097840442,0.99978858,3635.1,3635.0,4.31035]
[1736097847647,0.99978858,3635.1,3635.0,1.10255]
[1736097847847,0.99978858,3635.1,3635.0,4.31035]
[1736097848450,0.99978858,3635.1,3635.0,8.63123157]
[1736097854150,3.16004792,3635.1,3635.0,8.23423175]
[1736097854651,3.16004792,3635.1,3635.0,5.02643175]
[1736097854953,3.16004792,3635.1,3635.0,8.23423175]
[1736097857053,3.16004792,3635.1,3635.0,14.70313556]
[1736097858355,0.99978858,3635.1,3635.0,14.70313556]
[1736097862352,4.24480298,3635.1,3635.0,14.70313556]
[1736097863956,4.65762508,3635.1,3635.0,14.70313556]
[1736097864858,4.65762508,3635.1,3635.0,14.25923556]
[1736097865259,1.83481068,3635.1,3635.0,14.25923556]
[1736097865459,1.83481068,3635.1,3635.0,7.79033175]
[1736097866354,1.83481068,3635.1,3635.0,3.92388175]
[1736097866355,5.29025068,3635.1,3635.0,3.92388175]
[1736097866978,4.87742858,3635.1,3635.0,3.92388175]
[1736097868384,9.35760122,3635.1,3634.6,4.32252463]
[1736097868587,0.99978858,3634.7,3634.6,4.57019463]
[1736097869481,5.74321026,3634.7,3634.6,0.24767]
[1736097870190,0.24768,3634.6,3634.5,4.32252463]
[1736097870395,1.10018,3634.6,3634.5,4.32252463]
[1736097870798,0.24768,3634.5,3634.4,4.32252463]
[1736097870992,1.24746858,3634.5,3634.4,4.32252463]
[1736097871984,4.65832118,3634.5,3634.3,0.4133]
[1736097872182,0.24769,3634.4,3634.3,0.4133]
[1736097873475,3.4934005,3634.4,3634.3,0.4133]
[1736097876466,0.24769,3634.4,3634.3,0.4133]
[1736097877459,3.16119564,3634.4,3634.0,0.4247]
[1736097877666,1.24749858,3634.1,3634.0,0.4247]
[1736097879071,1.65829858,3634.1,3634.0,0.4247]
[1736097893381,0.24771,3634.1,3634.0,0.67242]
[1736097894079,0.24771,3634.1,3634.0,0.4247]
[1736097894585,0.66771,3634.1,3634.0,0.4247]
[1736097898090,0.42,3634.1,3633.8,0.8369]
[1736097898293,0.24772,3633.9,3633.8,1.08463]
[1736097901993,1.24750858,3634.0,3633.9,0.24772]
[1736097907396,0.24772,3634.0,3633.9,0.24772]
[1736097908011,0.24771,3634.1,3634.0,0.24772]
[1736097908494,2.82830706,3634.3,3634.2,0.2477]
[1736097908699,2.16140706,3634.3,3634.2,1.24748858]
[1736097909399,2.40910706,3634.3,3634.2,1.24748858]
[1736097909602,2.40910706,3634.3,3634.0,3.2078]
[1736097909603,2.40910706,3634.3,3634.1,0.24771]
[1736097909799,3.40889564,3634.3,3634.1,0.24771]
[1736097910108,0.2477,3634.2,3634.1,0.24771]
[1736097910701,2.40908706,3634.6,3634.0,10.67649239]
[1736097910903,3.40887564,3634.6,3634.4,0.24769]
[1736097911107,3.40887564,3634.6,3634.5,0.8363]
[1736097911409,0.99978858,3634.6,3634.5,1.08398]
[1736097911611,3.9014905,3634.7,3634.6,0.24768]
[1736097911612,3.2457105,3634.7,3634.6,0.24768]
[1736097912915,6.37102459,3634.8,3634.7,0.24767]
[1736097913105,5.37123601,3634.8,3634.7,0.24767]
[1736097913312,2.16343601,3634.8,3634.7,0.24767]
[1736097914308,3.41087459,3635.0,3634.8,0.24766]
[1736097914900,3.41087459,3635.0,3634.7,3.92262732]
[1736097915103,3.41087459,3635.0,3634.9,0.24766]
[1736097915305,3.16322459,3635.0,3634.9,0.24766]
[1736097916107,2.16343601,3635.0,3634.9,0.24766]
[1736097917810,6.37102459,3635.2,3635.1,0.24764]
[1736097918014,6.61866459,3635.2,3635.0,0.24764]
[1736097918214,6.61866459,3635.2,3635.1,0.4432]
[1736097919415,6.37102459,3635.2,3635.1,0.69084]
[1736097920115,3.16322459,3635.2,3635.1,0.69084]
[1736097920314,3.41086459,3635.2,3635.1,0.69084]
[1736097920514,3.16322459,3635.2,3635.1,0.69084]
[1736097920715,0.99978858,3635.2,3635.1,0.4432]
[1736097921014,1.24742858,3635.2,3635.1,0.4432]
[1736097921611,1.24742858,3635.2,3635.1,0.69084]
[1736097921612,0.99978858,3635.2,3635.1,0.69084]
[1736097922520,1.24742858,3635.2,3635.1,0.4432]
[1736097923519,1.24742858,3635.2,3635.1,0.69084]
[1736097923712,1.24742858,3635.2,3635.1,0.4432]
[1736097923912,1.24742858,3635.2,3635.1,0.69084]
[1736097924814,1.24742858,3635.2,3635.1,0.4432]
[1736097926411,1.24742858,3635.2,3635.1,0.69084]
[1736097926618,0.416,3635.3,3635.2,0.24764]
[1736097926916,3.41084459,3635.5,3635.4,0.24762]
[1736097927115,2.60543601,3635.5,3635.4,0.24762]
[1736097927317,2.16343601,3635.5,3635.4,0.24762]
[1736097927515,2.16343601,3635.5,3635.4,0.67002]
[1736097927720,12.86133715,3635.7,3635.6,0.24761]
[1736097928318,12.86133715,3635.7,3635.6,0.69651]
[1736097928817,13.10893715,3635.7,3635.6,0.69651]
[1736097929120,9.69811256,3635.7,3635.6,0.69651]
[1736097929317,6.49031256,3635.7,3635.6,0.69651]
[1736097931827,6.73791256,3635.7,3635.6,0.69651]
[1736097932120,0.6622,3635.7,3635.6,0.69651]
[1736097933224,0.6622,3635.7,3635.6,0.4489]
[1736097936929,0.6622,3635.7,3635.6,0.69651]
[1736097938022,0.4146,3635.7,3635.3,1.069]
[1736097938326,0.99978858,3635.6,3635.3,1.31663]
[1736097938522,0.99978858,3635.6,3635.3,1.069]
[1736097938722,0.4146,3635.7,3635.3,1.069]
[1736097938924,0.4146,3635.7,3635.6,0.24761]
[1736097938925,1.66199858,3635.7,3635.6,0.24761]
[1736097939430,1.41438858,3635.7,3635.6,0.24761]
[1736097941129,1.66198858,3635.7,3635.6,0.24761]
[1736097941931,1.41438858,3635.7,3635.6,0.24761]
[1736097942131,3.84355728,3636.0,3635.9,0.24759]
[1736097942533,0.63575728,3636.0,3635.9,0.24759]
[1736097942722,0.4043,3636.2,3635.8,0.99978858]
[1736097942926,2.16343601,3636.3,3636.2,0.24757]
[1736097943631,2.16343601,3636.3,3636.2,1.12177]
[1736097944034,0.415,3636.5,3636.4,0.24755]
[1736097945134,0.415,3636.5,3636.2,0.8742]
[1736097945333,0.99978858,3636.4,3636.3,0.24756]
[1736097945727,1.24733858,3636.4,3636.3,0.24756]
[1736097945929,0.24756,3636.3,3636.2,1.12177]
[1736097946230,0.24756,3636.3,3636.2,0.8742]
[1736097946533,0.24756,3636.3,3636.2,0.4308]
[1736097946734,0.66656,3636.3,3636.2,0.4308]
[1736097947930,0.419,3636.3,3635.9,1.75969]
[1736097948137,0.99978858,3636.1,3635.9,1.5121]
[1736097948337,0.99978858,3636.1,3636.0,0.24758]
[1736097949239,1.24734858,3636.3,3636.1,0.24757]
[1736097949738,0.99978858,3636.3,3636.2,0.24757]
[1736097952940,1.41478858,3636.5,3636.4,0.24755]
[1736097957244,1.41478858,3636.5,3636.4,0.68025]
[1736097961644,0.415,3636.5,3636.4,0.68025]
[1736097965643,0.66255,3636.5,3636.4,0.68025]
[1736097966848,0.415,3636.5,3636.4,0.68025]
[1736097968550,0.99978858,3636.6,3636.4,1.43248858]
[1736097968753,2.16343601,3636.8,3636.7,0.24753]
[1736097968754,3.16322459,3636.8,3636.7,0.24753]
[1736097969248,2.41096601,3636.8,3636.7,0.24753]
[1736097969555,3.16322459,3636.8,3636.7,0.24753]
[1736097970852,0.99978858,3636.8,3636.7,0.24753]
[1736097971256,1.24731858,3636.8,3636.7,0.24753]
[1736097975355,1.99957716,3636.8,3636.4,0.4327]
[1736097975556,1.24733858,3636.5,3636.4,0.4327]
[1736097975755,0.24755,3636.4,3636.3,0.4127]
[1736097975959,1.24733858,3636.4,3636.3,0.4127]
[1736097976852,0.99978858,3636.4,3635.9,4.99541944]
[1736097977057,0.99978858,3636.0,3635.9,5.43361944]
[1736097977662,0.99978858,3636.0,3635.9,5.18603944]
[1736097978459,0.99978858,3636.0,3635.9,0.8703]
[1736097979060,0.68108,3636.1,3635.9,0.8703]
[1736097980567,0.68108,3636.1,3635.9,1.11789]
[1736097982668,0.4335,3636.1,3635.9,1.11789]
[1736097983065,0.4335,3636.1,3635.9,0.8703]
[1736097983370,2.16343601,3636.3,3636.2,0.24757]
[1736097983873,3.2457105,3636.4,3635.9,0.8703]
[1736097984069,3.2457105,3636.4,3636.3,0.24756]
[1736097985270,2.16200799,3636.4,3636.3,0.24756]
[1736097986765,2.16200799,3636.5,3636.4,0.24755]
[1736097986966,2.16200799,3636.5,3636.4,1.12465]
[1736097987169,2.16200799,3636.5,3636.4,1.55965]
[1736097988270,2.16200799,3636.6,3636.4,11.69613668]
[1736097988472,2.16200799,3636.6,3636.5,0.24755]
[1736097989675,2.16200799,3636.6,3636.5,4.5566181]
[1736097993473,2.16200799,3636.6,3636.5,5.6246181]
[1736097999072,2.40954799,3636.6,3636.5,5.3770681]
[1736097999476,2.40954799,3636.6,3636.5,4.5566181]
[1736097999777,2.16200799,3636.6,3636.5,4.5566181]
[1736098000080,3.4932505,3636.7,3636.5,0.24755]
[1736098000378,0.4134,3636.6,3636.5,0.24755]
[1736098001082,0.4134,3636.6,3636.5,1.24621025]
[1736098001379,0.24755,3636.5,3636.4,4.3090681]
[1736098001575,0.24755,3636.5,3636.4,5.30772835]
[1736098002979,2.41088703,3636.5,3636.4,5.30772835]
[1736098003582,2.41088703,3636.5,3636.4,5.55527835]
[1736098003777,2.16333703,3636.5,3636.4,6.00057835]
[1736098004282,2.41088703,3636.5,3636.4,6.00057835]
[1736098008180,2.16333703,3636.5,3636.4,6.00057835]
[1736098008882,2.41088703,3636.5,3636.4,6.00057835]
[1736098009078,2.16333703,3636.5,3636.4,6.00057835]
[1736098009477,3.16199728,3636.5,3636.4,4.3090681]
[1736098009678,5.61868703,3636.5,3636.4,4.3090681]
[1736098009880,6.02758703,3636.5,3636.4,4.3090681]
[1736098011682,8.33965896,3636.5,3635.7,7.7644681]
[1736098011880,0.24758,3636.0,3635.7,7.7644681]
[1736098012078,0.8529,3635.9,3635.7,7.7644681]
[1736098013184,2.16320352,3635.8,3635.7,7.7644681]
[1736098013580,2.16320352,3635.8,3635.7,7.5168681]
[1736098013982,2.16320352,3635.8,3635.7,7.7644681]
[1736098014674,3.01610352,3635.9,3635.7,7.7644681]
[1736098014876,3.01610352,3635.9,3635.8,0.99866025]
[1736098015077,3.26369352,3635.9,3635.8,0.99866025]
[1736098016684,3.01610352,3635.9,3635.8,0.99866025]
[1736098017884,0.8529,3635.9,3635.8,0.99866025]
[1736098018712,0.4337,3635.9,3635.8,0.99866025]
[1736098019913,0.4337,3635.9,3635.7,3.4554]
[1736098020106,0.4337,3635.9,3635.8,0.99866025]
[1736098020906,0.68129,3635.9,3635.8,0.99866025]
[1736098021799,0.4337,3635.9,3635.8,0.99866025]
[1736098022004,0.68129,3635.9,3635.8,0.99866025]
[1736098022893,0.4337,3635.9,3635.8,0.99866025]
[1736098023790,0.4337,3635.9,3635.8,1.24626025]
[1736098023994,2.16320352,3636.0,3635.8,0.99866025]
[1736098024293,2.16320352,3636.0,3635.8,1.24625025]
[1736098024892,0.24758,3636.1,3635.8,1.24625025]
[1736098025097,0.24758,3636.1,3636.0,0.99866025]
[1736098025390,0.24757,3636.1,3636.0,0.99866025]
[1736098025597,2.41077352,3636.2,3636.0,1.24624025]
[1736098025798,2.41077352,3636.2,3636.1,0.8749]
[1736098025997,2.41077352,3636.2,3636.1,1.3024]
[1736098026197,0.24757,3636.2,3636.1,0.4369]
[1736098028997,2.41077352,3636.2,3636.1,0.4369]
[1736098030699,0.24757,3636.2,3636.1,0.4369]
[1736098035613,0.24759,3635.9,3635.8,5.1745681]
[1736098035817,0.24759,3635.9,3635.8,5.6177681]
[1736098036314,0.24759,3635.9,3635.8,1.3087]
[1736098038913,2.40895822,3636.1,3635.9,0.24759]
[1736098039115,2.16137822,3636.1,3636.0,0.99866025]
[1736098039807,2.40893822,3636.3,3636.0,1.24624025]
[1736098040006,2.40893822,3636.3,3636.2,1.24623025]
[1736098040007,2.16137822,3636.3,3636.2,1.24623025]
[1736098041144,0.24756,3636.4,3636.2,2.32123025]
[1736098041434,2.16137822,3636.5,3636.4,0.24755]
[1736098041624,2.16137822,3636.5,3636.4,1.24621025]
[1736098042823,2.40891822,3636.7,3636.4,5.55527835]
[1736098043019,2.40891822,3636.7,3636.6,0.99866025]
[1736098044226,0.24755,3636.6,3636.4,4.3090681]
[1736098044526,0.66344,3636.6,3636.5,0.99866025]
[1736098046611,0.66344,3636.6,3636.3,6.59422835]
[1736098046819,0.66344,3636.6,3636.4,0.24755]
[1736098047625,0.66344,3636.6,3636.3,6.59422835]
[1736098047919,0.66344,3636.6,3636.3,6.84178835]
[1736098048719,0.66344,3636.6,3636.4,0.24755]
[1736098048920,0.66344,3636.6,3636.5,0.99866025]
[1736098052218,0.24754,3636.6,3636.5,0.99866025]
[1736098052426,2.40891822,3636.7,3636.5,1.24621025]
[1736098052616,2.16137822,3636.7,3636.5,1.24621025]
[1736098052818,0.24754,3636.6,3636.5,1.24621025]
[1736098053021,0.24754,3636.6,3636.5,0.99866025]
[1736098072126,0.24754,3636.6,3636.5,1.24621025]
[1736098072530,0.24754,3636.6,3636.5,0.99866025]
[1736098074136,0.24754,3636.6,3636.5,5.30772835]
[1736098077732,2.16137822,3636.7,3636.6,0.24754]
[1736098078038,3.24480529,3636.9,3636.6,3.2078]
[1736098078238,3.24480529,3636.9,3636.8,1.24619025]
[1736098079738,0.24749,3637.4,3636.8,12.88814325]
[1736098080044,0.24748,3637.5,3637.3,1.24615025]
[1736098080240,0.24748,3637.5,3637.4,0.4103]
[1736098082046,0.24748,3637.5,3637.4,0.8277]
[1736098087946,0.65127,3637.6,3637.4,0.8277]
[1736098088146,0.65127,3637.6,3637.5,0.99866025]
[1736098094148,0.4038,3637.6,3637.5,0.99866025]
[1736098094345,0.4038,3637.6,3637.5,1.24614025]
[1736098094946,0.24747,3637.7,3637.5,1.24614025]
[1736098095340,0.405,3637.8,3637.5,0.99866025]
[1736098095544,0.65246,3637.8,3637.7,0.99866025]
[1736098096151,0.65246,3637.8,3637.7,1.43366025]
[1736098107849,0.405,3637.8,3637.7,1.68113025]